{"text_format":"3","workbook":"xlsx","n_sheets":3,"sheets":["Månedlig budsjettrapport","Månedlige utgifter","Tilleggsdata"],"not_rendered":{"charts":1,"defined_names":4,"pivot_tables":2},"read":"whole","date_system":"1900"}

{"sheet":"Månedlig budsjettrapport","index":0,"n_rows":34,"n_cols":13,"rows_kept":34,"merged":[[7,1,10,1],[7,5,10,5],[7,6,10,6],[12,1,16,1],[12,5,16,5],[12,6,16,6]]}
[null,"Budsjettoversikt",{"$nulls":7},"Budsjettsammendrag"]
[null,"Saldo"]
[null,"Planlagt saldo","(Planlagt minus utgifter)",{"$nulls":3},{"$f":"D17-SUM(Budsjettdetaljer[Planlagt kostnad])","v":{"v":1585,"d":"kr 1,585"}}]
[null,"Faktisk saldo ","(Faktisk minus utgifter)",{"$nulls":3},{"$f":"D11-SUM(Budsjettdetaljer[Faktisk kostnad])","v":{"v":1740,"d":"kr 1,740"}}]
[null,"Forskjell","(Faktisk minus planlagt)",{"$nulls":3},{"$f":"G4-G3","v":{"v":155,"d":"kr 155"}}]
[]
[null,"Inntekt",{"$nulls":3},"Utgifter",{"$nulls":3},"Høyreklikk pivottabellen nedenfor, og klikk deretter Oppdater for å oppdatere"]
[null,"FAKTISK","Inntekt 1",{"v":5800,"d":"kr 5,800"},null,"FAKTISK",{"$f":"SUM(Budsjettdetaljer[Faktisk kostnad])","v":{"v":7860,"d":"kr 7,860"}}]
[null,null,"Inntekt 2",{"v":2300,"d":"kr 2,300"},{"$nulls":5},"Kategori","Planlagt kostnad ","Faktisk kostnad ","Forskjell "]
[null,null,"Ekstra inntekt",{"v":1500,"d":"kr 1,500"},{"$nulls":5},"Barn",{"v":140,"d":"kr 140"},{"v":140,"d":"kr 140"},{"v":0,"d":"kr 0"}]
[null,null,"Total inntekt",{"$f":"SUM(D8:D10)","v":{"v":9600,"d":"kr 9,600"}}]
[{"$nulls":9},"Boutgifter",{"v":2830,"d":"kr 2,830"},{"v":2702,"d":"kr 2,702"},{"v":128,"d":"kr 128"}]
[null,"PLANLAGT",{"$nulls":3},"PLANLAGT",{"$f":"SUM(Budsjettdetaljer[Planlagt kostnad])","v":{"v":7915,"d":"kr 7,915"}}]
[null,null,"Inntekt 1",{"v":6000,"d":"kr 6,000"},{"$nulls":5},"Forsikring",{"v":900,"d":"kr 900"},{"v":900,"d":"kr 900"},{"v":0,"d":"kr 0"}]
[null,null,"Inntekt 2",{"v":1000,"d":"kr 1,000"}]
[null,null,"Ekstra inntekt",{"v":2500,"d":"kr 2,500"},{"$nulls":5},"Gaver og veldedighet",{"v":100,"d":"kr 100"},{"v":125,"d":"kr 125"},{"v":-25,"d":"-kr 25"}]
[null,null,"Total inntekt",{"$f":"SUM(D14:D16)","v":{"v":9500,"d":"kr 9,500"}}]
[{"$nulls":9},"Kjæledyr",{"v":170,"d":"kr 170"},{"v":100,"d":"kr 100"},{"v":70,"d":"kr 70"}]
[]
[{"$nulls":9},"Lån",{"v":200,"d":"kr 200"},{"v":200,"d":"kr 200"},{"v":0,"d":"kr 0"}]
[]
[{"$nulls":9},"Mat",{"v":1100,"d":"kr 1,100"},{"v":1320,"d":"kr 1,320"},{"v":-220,"d":"-kr 220"}]
[]
[{"$nulls":9},"Personlig pleie",{"v":150,"d":"kr 150"},{"v":140,"d":"kr 140"},{"v":10,"d":"kr 10"}]
[]
[{"$nulls":9},"Skatter",{"v":300,"d":"kr 300"},{"v":300,"d":"kr 300"},{"v":0,"d":"kr 0"}]
[]
[{"$nulls":9},"Sparing eller investeringer",{"v":200,"d":"kr 200"},{"v":200,"d":"kr 200"},{"v":0,"d":"kr 0"}]
[]
[{"$nulls":9},"Transport",{"v":1425,"d":"kr 1,425"},{"v":1375,"d":"kr 1,375"},{"v":50,"d":"kr 50"}]
[]
[{"$nulls":9},"Underholdning",{"v":400,"d":"kr 400"},{"v":358,"d":"kr 358"},{"v":42,"d":"kr 42"}]
[]
[{"$nulls":9},"Grand Total",{"v":7915,"d":"kr 7,915"},{"v":7860,"d":"kr 7,860"},{"v":55,"d":"kr 55"}]

{"sheet":"Månedlige utgifter","index":1,"n_rows":62,"n_cols":7,"rows_kept":62}
[null,"Månedlige utgifter"]
[null,"Beskrivelse","Kategori","Planlagt kostnad","Faktisk kostnad","Forskjell","Oversikt over faktiske kostnader"]
[null,"Tilleggsaktiviteter","Barn",{"v":40,"d":"kr 40"},{"v":40,"d":"kr 40"},{"$f":"Budsjettdetaljer[[#This Row],[Planlagt kostnad]]-Budsjettdetaljer[[#This Row],[Faktisk kostnad]]","v":{"v":0,"d":"kr 0"}},{"$f":"Budsjettdetaljer[[#This Row],[Faktisk kostnad]]","v":{"v":40,"d":"$40"}}]
[null,"Medisinske utgifter","Barn",null,null,{"$f":"Budsjettdetaljer[[#This Row],[Planlagt kostnad]]-Budsjettdetaljer[[#This Row],[Faktisk kostnad]]","v":{"v":0,"d":"kr 0"}},{"$f":"Budsjettdetaljer[[#This Row],[Faktisk kostnad]]","v":{"v":0,"d":"$0"}}]
[null,"Skolemateriell","Barn",null,null,{"$f":"Budsjettdetaljer[[#This Row],[Planlagt kostnad]]-Budsjettdetaljer[[#This Row],[Faktisk kostnad]]","v":{"v":0,"d":"kr 0"}},{"$f":"Budsjettdetaljer[[#This Row],[Faktisk kostnad]]","v":{"v":0,"d":"$0"}}]
[null,"Skolepenger","Barn",{"v":100,"d":"kr 100"},{"v":100,"d":"kr 100"},{"$f":"Budsjettdetaljer[[#This Row],[Planlagt kostnad]]-Budsjettdetaljer[[#This Row],[Faktisk kostnad]]","v":{"v":0,"d":"kr 0"}},{"$f":"Budsjettdetaljer[[#This Row],[Faktisk kostnad]]","v":{"v":100,"d":"$100"}}]
[null,"Konserter","Underholdning",{"v":50,"d":"kr 50"},{"v":40,"d":"kr 40"},{"$f":"Budsjettdetaljer[[#This Row],[Planlagt kostnad]]-Budsjettdetaljer[[#This Row],[Faktisk kostnad]]","v":{"v":10,"d":"kr 10"}},{"$f":"Budsjettdetaljer[[#This Row],[Faktisk kostnad]]","v":{"v":40,"d":"$40"}}]
[null,"Teater","Underholdning",{"v":200,"d":"kr 200"},{"v":150,"d":"kr 150"},{"$f":"Budsjettdetaljer[[#This Row],[Planlagt kostnad]]-Budsjettdetaljer[[#This Row],[Faktisk kostnad]]","v":{"v":50,"d":"kr 50"}},{"$f":"Budsjettdetaljer[[#This Row],[Faktisk kostnad]]","v":{"v":150,"d":"$150"}}]
[null,"Filmer","Underholdning",{"v":50,"d":"kr 50"},{"v":28,"d":"kr 28"},{"$f":"Budsjettdetaljer[[#This Row],[Planlagt kostnad]]-Budsjettdetaljer[[#This Row],[Faktisk kostnad]]","v":{"v":22,"d":"kr 22"}},{"$f":"Budsjettdetaljer[[#This Row],[Faktisk kostnad]]","v":{"v":28,"d":"$28"}}]
[null,"Musikk (CDer, nedlastinger osv.)","Underholdning",{"v":50,"d":"kr 50"},{"v":30,"d":"kr 30"},{"$f":"Budsjettdetaljer[[#This Row],[Planlagt kostnad]]-Budsjettdetaljer[[#This Row],[Faktisk kostnad]]","v":{"v":20,"d":"kr 20"}},{"$f":"Budsjettdetaljer[[#This Row],[Faktisk kostnad]]","v":{"v":30,"d":"$30"}}]
[null,"Idrettsarrangementer","Underholdning",{"v":0,"d":"kr 0"},{"v":40,"d":"kr 40"},{"$f":"Budsjettdetaljer[[#This Row],[Planlagt kostnad]]-Budsjettdetaljer[[#This Row],[Faktisk kostnad]]","v":{"v":-40,"d":"(kr 40)"}},{"$f":"Budsjettdetaljer[[#This Row],[Faktisk kostnad]]","v":{"v":40,"d":"$40"}}]
[null,"Video/DVD (kjøp)","Underholdning",{"v":20,"d":"kr 20"},{"v":50,"d":"kr 50"},{"$f":"Budsjettdetaljer[[#This Row],[Planlagt kostnad]]-Budsjettdetaljer[[#This Row],[Faktisk kostnad]]","v":{"v":-30,"d":"(kr 30)"}},{"$f":"Budsjettdetaljer[[#This Row],[Faktisk kostnad]]","v":{"v":50,"d":"$50"}}]
[null,"Video/DVD (leie)","Underholdning",{"v":30,"d":"kr 30"},{"v":20,"d":"kr 20"},{"$f":"Budsjettdetaljer[[#This Row],[Planlagt kostnad]]-Budsjettdetaljer[[#This Row],[Faktisk kostnad]]","v":{"v":10,"d":"kr 10"}},{"$f":"Budsjettdetaljer[[#This Row],[Faktisk kostnad]]","v":{"v":20,"d":"$20"}}]
[null,"Spise ute","Mat",{"v":1000,"d":"kr 1,000"},{"v":1200,"d":"kr 1,200"},{"$f":"Budsjettdetaljer[[#This Row],[Planlagt kostnad]]-Budsjettdetaljer[[#This Row],[Faktisk kostnad]]","v":{"v":-200,"d":"(kr 200)"}},{"$f":"Budsjettdetaljer[[#This Row],[Faktisk kostnad]]","v":{"v":1200,"d":"$1,200"}}]
[null,"Dagligvarer","Mat",{"v":100,"d":"kr 100"},{"v":120,"d":"kr 120"},{"$f":"Budsjettdetaljer[[#This Row],[Planlagt kostnad]]-Budsjettdetaljer[[#This Row],[Faktisk kostnad]]","v":{"v":-20,"d":"(kr 20)"}},{"$f":"Budsjettdetaljer[[#This Row],[Faktisk kostnad]]","v":{"v":120,"d":"$120"}}]
[null,"Veldedighet 1","Gaver og veldedighet",{"v":75,"d":"kr 75"},{"v":100,"d":"kr 100"},{"$f":"Budsjettdetaljer[[#This Row],[Planlagt kostnad]]-Budsjettdetaljer[[#This Row],[Faktisk kostnad]]","v":{"v":-25,"d":"(kr 25)"}},{"$f":"Budsjettdetaljer[[#This Row],[Faktisk kostnad]]","v":{"v":100,"d":"$100"}}]
[null,"Veldedighet 2","Gaver og veldedighet",{"v":25,"d":"kr 25"},{"v":25,"d":"kr 25"},{"$f":"Budsjettdetaljer[[#This Row],[Planlagt kostnad]]-Budsjettdetaljer[[#This Row],[Faktisk kostnad]]","v":{"v":0,"d":"kr 0"}},{"$f":"Budsjettdetaljer[[#This Row],[Faktisk kostnad]]","v":{"v":25,"d":"$25"}}]
[null,"Gave 1","Gaver og veldedighet",null,null,{"$f":"Budsjettdetaljer[[#This Row],[Planlagt kostnad]]-Budsjettdetaljer[[#This Row],[Faktisk kostnad]]","v":{"v":0,"d":"kr 0"}},{"$f":"Budsjettdetaljer[[#This Row],[Faktisk kostnad]]","v":{"v":0,"d":"$0"}}]
[null,"Gave 2","Gaver og veldedighet",null,null,{"$f":"Budsjettdetaljer[[#This Row],[Planlagt kostnad]]-Budsjettdetaljer[[#This Row],[Faktisk kostnad]]","v":{"v":0,"d":"kr 0"}},{"$f":"Budsjettdetaljer[[#This Row],[Faktisk kostnad]]","v":{"v":0,"d":"$0"}}]
[null,"TV","Boutgifter",{"v":100,"d":"kr 100"},{"v":100,"d":"kr 100"},{"$f":"Budsjettdetaljer[[#This Row],[Planlagt kostnad]]-Budsjettdetaljer[[#This Row],[Faktisk kostnad]]","v":{"v":0,"d":"kr 0"}},{"$f":"Budsjettdetaljer[[#This Row],[Faktisk kostnad]]","v":{"v":100,"d":"$100"}}]
[null,"Strøm","Boutgifter",{"v":45,"d":"kr 45"},{"v":50,"d":"kr 50"},{"$f":"Budsjettdetaljer[[#This Row],[Planlagt kostnad]]-Budsjettdetaljer[[#This Row],[Faktisk kostnad]]","v":{"v":-5,"d":"(kr 5)"}},{"$f":"Budsjettdetaljer[[#This Row],[Faktisk kostnad]]","v":{"v":50,"d":"$50"}}]
[null,"Gass","Boutgifter",{"v":300,"d":"kr 300"},{"v":400,"d":"kr 400"},{"$f":"Budsjettdetaljer[[#This Row],[Planlagt kostnad]]-Budsjettdetaljer[[#This Row],[Faktisk kostnad]]","v":{"v":-100,"d":"(kr 100)"}},{"$f":"Budsjettdetaljer[[#This Row],[Faktisk kostnad]]","v":{"v":400,"d":"$400"}}]
[null,"Rengjøringshjelp","Boutgifter",{"v":200,"d":"kr 200"},null,{"$f":"Budsjettdetaljer[[#This Row],[Planlagt kostnad]]-Budsjettdetaljer[[#This Row],[Faktisk kostnad]]","v":{"v":200,"d":"kr 200"}},{"$f":"Budsjettdetaljer[[#This Row],[Faktisk kostnad]]","v":{"v":0,"d":"$0"}}]
[null,"Vedlikehold","Boutgifter",{"v":200,"d":"kr 200"},{"v":150,"d":"kr 150"},{"$f":"Budsjettdetaljer[[#This Row],[Planlagt kostnad]]-Budsjettdetaljer[[#This Row],[Faktisk kostnad]]","v":{"v":50,"d":"kr 50"}},{"$f":"Budsjettdetaljer[[#This Row],[Faktisk kostnad]]","v":{"v":150,"d":"$150"}}]
[null,"Lån eller leie","Boutgifter",{"v":1700,"d":"kr 1,700"},{"v":1700,"d":"kr 1,700"},{"$f":"Budsjettdetaljer[[#This Row],[Planlagt kostnad]]-Budsjettdetaljer[[#This Row],[Faktisk kostnad]]","v":{"v":0,"d":"kr 0"}},{"$f":"Budsjettdetaljer[[#This Row],[Faktisk kostnad]]","v":{"v":1700,"d":"$1,700"}}]
[null,"Naturgass/olje","Boutgifter",null,null,{"$f":"Budsjettdetaljer[[#This Row],[Planlagt kostnad]]-Budsjettdetaljer[[#This Row],[Faktisk kostnad]]","v":{"v":0,"d":"kr 0"}},{"$f":"Budsjettdetaljer[[#This Row],[Faktisk kostnad]]","v":{"v":0,"d":"$0"}}]
[null,"Elektronisk/Internett-tjeneste","Boutgifter",{"v":100,"d":"kr 100"},{"v":100,"d":"kr 100"},{"$f":"Budsjettdetaljer[[#This Row],[Planlagt kostnad]]-Budsjettdetaljer[[#This Row],[Faktisk kostnad]]","v":{"v":0,"d":"kr 0"}},{"$f":"Budsjettdetaljer[[#This Row],[Faktisk kostnad]]","v":{"v":100,"d":"$100"}}]
[null,"Telefon (mobil)","Boutgifter",{"v":60,"d":"kr 60"},{"v":60,"d":"kr 60"},{"$f":"Budsjettdetaljer[[#This Row],[Planlagt kostnad]]-Budsjettdetaljer[[#This Row],[Faktisk kostnad]]","v":{"v":0,"d":"kr 0"}},{"$f":"Budsjettdetaljer[[#This Row],[Faktisk kostnad]]","v":{"v":60,"d":"$60"}}]
[null,"Telefon (fast)","Boutgifter",{"v":35,"d":"kr 35"},{"v":39,"d":"kr 39"},{"$f":"Budsjettdetaljer[[#This Row],[Planlagt kostnad]]-Budsjettdetaljer[[#This Row],[Faktisk kostnad]]","v":{"v":-4,"d":"(kr 4)"}},{"$f":"Budsjettdetaljer[[#This Row],[Faktisk kostnad]]","v":{"v":39,"d":"$39"}}]
[null,"Materiell","Boutgifter",{"v":40,"d":"kr 40"},{"v":55,"d":"kr 55"},{"$f":"Budsjettdetaljer[[#This Row],[Planlagt kostnad]]-Budsjettdetaljer[[#This Row],[Faktisk kostnad]]","v":{"v":-15,"d":"(kr 15)"}},{"$f":"Budsjettdetaljer[[#This Row],[Faktisk kostnad]]","v":{"v":55,"d":"$55"}}]
[null,"Renovasjon og gjenvinning","Boutgifter",{"v":25,"d":"kr 25"},{"v":22,"d":"kr 22"},{"$f":"Budsjettdetaljer[[#This Row],[Planlagt kostnad]]-Budsjettdetaljer[[#This Row],[Faktisk kostnad]]","v":{"v":3,"d":"kr 3"}},{"$f":"Budsjettdetaljer[[#This Row],[Faktisk kostnad]]","v":{"v":22,"d":"$22"}}]
[null,"Vann og kloakk","Boutgifter",{"v":25,"d":"kr 25"},{"v":26,"d":"kr 26"},{"$f":"Budsjettdetaljer[[#This Row],[Planlagt kostnad]]-Budsjettdetaljer[[#This Row],[Faktisk kostnad]]","v":{"v":-1,"d":"(kr 1)"}},{"$f":"Budsjettdetaljer[[#This Row],[Faktisk kostnad]]","v":{"v":26,"d":"$26"}}]
[null,"Helse","Forsikring",{"v":400,"d":"kr 400"},{"v":400,"d":"kr 400"},{"$f":"Budsjettdetaljer[[#This Row],[Planlagt kostnad]]-Budsjettdetaljer[[#This Row],[Faktisk kostnad]]","v":{"v":0,"d":"kr 0"}},{"$f":"Budsjettdetaljer[[#This Row],[Faktisk kostnad]]","v":{"v":400,"d":"$400"}}]
[null,"Bolig","Forsikring",{"v":400,"d":"kr 400"},{"v":400,"d":"kr 400"},{"$f":"Budsjettdetaljer[[#This Row],[Planlagt kostnad]]-Budsjettdetaljer[[#This Row],[Faktisk kostnad]]","v":{"v":0,"d":"kr 0"}},{"$f":"Budsjettdetaljer[[#This Row],[Faktisk kostnad]]","v":{"v":400,"d":"$400"}}]
[null,"Leve","Forsikring",{"v":100,"d":"kr 100"},{"v":100,"d":"kr 100"},{"$f":"Budsjettdetaljer[[#This Row],[Planlagt kostnad]]-Budsjettdetaljer[[#This Row],[Faktisk kostnad]]","v":{"v":0,"d":"kr 0"}},{"$f":"Budsjettdetaljer[[#This Row],[Faktisk kostnad]]","v":{"v":100,"d":"$100"}}]
[null,"Kredittkort 1","Lån",{"v":200,"d":"kr 200"},{"v":200,"d":"kr 200"},{"$f":"Budsjettdetaljer[[#This Row],[Planlagt kostnad]]-Budsjettdetaljer[[#This Row],[Faktisk kostnad]]","v":{"v":0,"d":"kr 0"}},{"$f":"Budsjettdetaljer[[#This Row],[Faktisk kostnad]]","v":{"v":200,"d":"$200"}}]
[null,"Kredittkort 2","Lån",null,null,{"$f":"Budsjettdetaljer[[#This Row],[Planlagt kostnad]]-Budsjettdetaljer[[#This Row],[Faktisk kostnad]]","v":{"v":0,"d":"kr 0"}},{"$f":"Budsjettdetaljer[[#This Row],[Faktisk kostnad]]","v":{"v":0,"d":"$0"}}]
[null,"Kredittkort 3","Lån",null,null,{"$f":"Budsjettdetaljer[[#This Row],[Planlagt kostnad]]-Budsjettdetaljer[[#This Row],[Faktisk kostnad]]","v":{"v":0,"d":"kr 0"}},{"$f":"Budsjettdetaljer[[#This Row],[Faktisk kostnad]]","v":{"v":0,"d":"$0"}}]
[null,"Personlig","Lån",null,null,{"$f":"Budsjettdetaljer[[#This Row],[Planlagt kostnad]]-Budsjettdetaljer[[#This Row],[Faktisk kostnad]]","v":{"v":0,"d":"kr 0"}},{"$f":"Budsjettdetaljer[[#This Row],[Faktisk kostnad]]","v":{"v":0,"d":"$0"}}]
[null,"Student","Lån",null,null,{"$f":"Budsjettdetaljer[[#This Row],[Planlagt kostnad]]-Budsjettdetaljer[[#This Row],[Faktisk kostnad]]","v":{"v":0,"d":"kr 0"}},{"$f":"Budsjettdetaljer[[#This Row],[Faktisk kostnad]]","v":{"v":0,"d":"$0"}}]
[null,"Klær","Personlig pleie",{"v":150,"d":"kr 150"},{"v":140,"d":"kr 140"},{"$f":"Budsjettdetaljer[[#This Row],[Planlagt kostnad]]-Budsjettdetaljer[[#This Row],[Faktisk kostnad]]","v":{"v":10,"d":"kr 10"}},{"$f":"Budsjettdetaljer[[#This Row],[Faktisk kostnad]]","v":{"v":140,"d":"$140"}}]
[null,"Renseri","Personlig pleie",null,null,{"$f":"Budsjettdetaljer[[#This Row],[Planlagt kostnad]]-Budsjettdetaljer[[#This Row],[Faktisk kostnad]]","v":{"v":0,"d":"kr 0"}},{"$f":"Budsjettdetaljer[[#This Row],[Faktisk kostnad]]","v":{"v":0,"d":"$0"}}]
[null,"Hår/negler","Personlig pleie",null,null,{"$f":"Budsjettdetaljer[[#This Row],[Planlagt kostnad]]-Budsjettdetaljer[[#This Row],[Faktisk kostnad]]","v":{"v":0,"d":"kr 0"}},{"$f":"Budsjettdetaljer[[#This Row],[Faktisk kostnad]]","v":{"v":0,"d":"$0"}}]
[null,"Treningsstudio","Personlig pleie",null,null,{"$f":"Budsjettdetaljer[[#This Row],[Planlagt kostnad]]-Budsjettdetaljer[[#This Row],[Faktisk kostnad]]","v":{"v":0,"d":"kr 0"}},{"$f":"Budsjettdetaljer[[#This Row],[Faktisk kostnad]]","v":{"v":0,"d":"$0"}}]
[null,"Medisinske utgifter","Personlig pleie",null,null,{"$f":"Budsjettdetaljer[[#This Row],[Planlagt kostnad]]-Budsjettdetaljer[[#This Row],[Faktisk kostnad]]","v":{"v":0,"d":"kr 0"}},{"$f":"Budsjettdetaljer[[#This Row],[Faktisk kostnad]]","v":{"v":0,"d":"$0"}}]
[null,"Mat","Kjæledyr",{"v":150,"d":"kr 150"},{"v":75,"d":"kr 75"},{"$f":"Budsjettdetaljer[[#This Row],[Planlagt kostnad]]-Budsjettdetaljer[[#This Row],[Faktisk kostnad]]","v":{"v":75,"d":"kr 75"}},{"$f":"Budsjettdetaljer[[#This Row],[Faktisk kostnad]]","v":{"v":75,"d":"$75"}}]
[null,"Dyrestell","Kjæledyr",{"v":20,"d":"kr 20"},{"v":25,"d":"kr 25"},{"$f":"Budsjettdetaljer[[#This Row],[Planlagt kostnad]]-Budsjettdetaljer[[#This Row],[Faktisk kostnad]]","v":{"v":-5,"d":"(kr 5)"}},{"$f":"Budsjettdetaljer[[#This Row],[Faktisk kostnad]]","v":{"v":25,"d":"$25"}}]
[null,"Medisinske utgifter","Kjæledyr",null,null,{"$f":"Budsjettdetaljer[[#This Row],[Planlagt kostnad]]-Budsjettdetaljer[[#This Row],[Faktisk kostnad]]","v":{"v":0,"d":"kr 0"}},{"$f":"Budsjettdetaljer[[#This Row],[Faktisk kostnad]]","v":{"v":0,"d":"$0"}}]
[null,"Leker","Kjæledyr",null,null,{"$f":"Budsjettdetaljer[[#This Row],[Planlagt kostnad]]-Budsjettdetaljer[[#This Row],[Faktisk kostnad]]","v":{"v":0,"d":"kr 0"}},{"$f":"Budsjettdetaljer[[#This Row],[Faktisk kostnad]]","v":{"v":0,"d":"$0"}}]
[null,"Investeringskonto","Sparing eller investeringer",{"v":200,"d":"kr 200"},{"v":200,"d":"kr 200"},{"$f":"Budsjettdetaljer[[#This Row],[Planlagt kostnad]]-Budsjettdetaljer[[#This Row],[Faktisk kostnad]]","v":{"v":0,"d":"kr 0"}},{"$f":"Budsjettdetaljer[[#This Row],[Faktisk kostnad]]","v":{"v":200,"d":"$200"}}]
[null,"Pensjon","Sparing eller investeringer",null,null,{"$f":"Budsjettdetaljer[[#This Row],[Planlagt kostnad]]-Budsjettdetaljer[[#This Row],[Faktisk kostnad]]","v":{"v":0,"d":"kr 0"}},{"$f":"Budsjettdetaljer[[#This Row],[Faktisk kostnad]]","v":{"v":0,"d":"$0"}}]
[null,"Stat","Skatter",{"v":300,"d":"kr 300"},{"v":300,"d":"kr 300"},{"$f":"Budsjettdetaljer[[#This Row],[Planlagt kostnad]]-Budsjettdetaljer[[#This Row],[Faktisk kostnad]]","v":{"v":0,"d":"kr 0"}},{"$f":"Budsjettdetaljer[[#This Row],[Faktisk kostnad]]","v":{"v":300,"d":"$300"}}]
[null,"Lokalt","Skatter",null,null,{"$f":"Budsjettdetaljer[[#This Row],[Planlagt kostnad]]-Budsjettdetaljer[[#This Row],[Faktisk kostnad]]","v":{"v":0,"d":"kr 0"}},{"$f":"Budsjettdetaljer[[#This Row],[Faktisk kostnad]]","v":{"v":0,"d":"$0"}}]
[null,"Fylke","Skatter",null,null,{"$f":"Budsjettdetaljer[[#This Row],[Planlagt kostnad]]-Budsjettdetaljer[[#This Row],[Faktisk kostnad]]","v":{"v":0,"d":"kr 0"}},{"$f":"Budsjettdetaljer[[#This Row],[Faktisk kostnad]]","v":{"v":0,"d":"$0"}}]
[null,"Buss/drosje","Transport",{"v":100,"d":"kr 100"},{"v":150,"d":"kr 150"},{"$f":"Budsjettdetaljer[[#This Row],[Planlagt kostnad]]-Budsjettdetaljer[[#This Row],[Faktisk kostnad]]","v":{"v":-50,"d":"(kr 50)"}},{"$f":"Budsjettdetaljer[[#This Row],[Faktisk kostnad]]","v":{"v":150,"d":"$150"}}]
[null,"Drivstoff","Transport",{"v":450,"d":"kr 450"},{"v":400,"d":"kr 400"},{"$f":"Budsjettdetaljer[[#This Row],[Planlagt kostnad]]-Budsjettdetaljer[[#This Row],[Faktisk kostnad]]","v":{"v":50,"d":"kr 50"}},{"$f":"Budsjettdetaljer[[#This Row],[Faktisk kostnad]]","v":{"v":400,"d":"$400"}}]
[null,"Forsikring","Transport",{"v":300,"d":"kr 300"},{"v":300,"d":"kr 300"},{"$f":"Budsjettdetaljer[[#This Row],[Planlagt kostnad]]-Budsjettdetaljer[[#This Row],[Faktisk kostnad]]","v":{"v":0,"d":"kr 0"}},{"$f":"Budsjettdetaljer[[#This Row],[Faktisk kostnad]]","v":{"v":300,"d":"$300"}}]
[null,"Lisensiering ","Transport",{"v":25,"d":"kr 25"},{"v":25,"d":"kr 25"},{"$f":"Budsjettdetaljer[[#This Row],[Planlagt kostnad]]-Budsjettdetaljer[[#This Row],[Faktisk kostnad]]","v":{"v":0,"d":"kr 0"}},{"$f":"Budsjettdetaljer[[#This Row],[Faktisk kostnad]]","v":{"v":25,"d":"$25"}}]
[null,"Vedlikehold","Transport",{"v":100,"d":"kr 100"},{"v":50,"d":"kr 50"},{"$f":"Budsjettdetaljer[[#This Row],[Planlagt kostnad]]-Budsjettdetaljer[[#This Row],[Faktisk kostnad]]","v":{"v":50,"d":"kr 50"}},{"$f":"Budsjettdetaljer[[#This Row],[Faktisk kostnad]]","v":{"v":50,"d":"$50"}}]
[null,"Parkeringsavgifter","Transport",null,null,{"$f":"Budsjettdetaljer[[#This Row],[Planlagt kostnad]]-Budsjettdetaljer[[#This Row],[Faktisk kostnad]]","v":{"v":0,"d":"kr 0"}},{"$f":"Budsjettdetaljer[[#This Row],[Faktisk kostnad]]","v":{"v":0,"d":"$0"}}]
[null,"Billån","Transport",{"v":450,"d":"kr 450"},{"v":450,"d":"kr 450"},{"$f":"Budsjettdetaljer[[#This Row],[Planlagt kostnad]]-Budsjettdetaljer[[#This Row],[Faktisk kostnad]]","v":{"v":0,"d":"kr 0"}},{"$f":"Budsjettdetaljer[[#This Row],[Faktisk kostnad]]","v":{"v":450,"d":"$450"}}]
[null,"Totalt",null,{"$f":"SUBTOTAL(109,Budsjettdetaljer[Planlagt kostnad])","v":{"v":7915,"d":"kr 7,915"}},{"$f":"SUBTOTAL(109,Budsjettdetaljer[Faktisk kostnad])","v":{"v":7860,"d":"kr 7,860"}},{"$f":"SUBTOTAL(109,Budsjettdetaljer[Forskjell])","v":{"v":55,"d":"kr 55"}}]

{"sheet":"Tilleggsdata","index":2,"n_rows":15,"n_cols":5,"rows_kept":15}
[null,"Pivottabell for budsjettoversiktsdiagram",null,null,"Oppslagsliste for detaljkategorier i budsjett"]
[null,"Kategori","Faktisk",null,"Budsjettkategorioppslag"]
[null,"Barn",140,null,"Barn"]
[null,"Boutgifter",2702,null,"Underholdning"]
[null,"Forsikring",900,null,"Mat"]
[null,"Gaver og veldedighet",125,null,"Gaver og veldedighet"]
[null,"Kjæledyr",100,null,"Boutgifter"]
[null,"Lån",200,null,"Forsikring"]
[null,"Mat",1320,null,"Lån"]
[null,"Personlig pleie",140,null,"Personlig pleie"]
[null,"Skatter",300,null,"Kjæledyr"]
[null,"Sparing eller investeringer",200,null,"Sparing eller investeringer"]
[null,"Transport",1375,null,"Skatter"]
[null,"Underholdning",358,null,"Transport"]
[null,"Grand Total",7860]